[Event "DVM U10 2024"]
[Site "Duesseldorf"]
[Date "2024.12.28"]
[Round "4"]
[White "Jöhnke, Thore"]
[Black "Nordmann, Vigo"]
[Result "1-0"]
[ECO "C50"]
[WhiteElo "861"]
[BlackElo "831"]
[Annotator "NA"]
[PlyCount "73"]
[EventDate "2024.12.23"]
[EventType "team-tourn"]
[EventRounds "7"]
[EventCountry "GER"]
[SourceTitle "playchess.com"]
[Source "ChessBase"]
[SourceQuality "1"]
[TimeControl "3300+5"]

1. e4 {[%emt 0:00:03]} e5 {[%emt 0:00:06]} 2. Nf3 {[%emt 0:00:03]} Nc6 {[%emt 0:00:05]} 3. Bc4 {[%emt 0:00:07]} Bc5 {[%emt 0:00:59]} 4. d3 {[%emt 0:00:02]} Nf6 {[%emt 0:00:32]} 5. Nc3 {[%emt 0:00:07]} O-O {[%emt 0:00:16]} 6. Bg5 {[%emt 0:00:05]} h6 {[%emt 0:00:27]} 7. Bh4 {[%emt 0:00:06]} Nb4 {[%emt 0:01:21]} 8. a3 {[%emt 0:00:00]} d5 {[%emt 0:00:22]} 9. Bxd5 {[%emt 0:00:19]} Nbxd5 {[%emt 0:00:16]} 10. Nxd5 {[%emt 0:00:08]} Qd6 {[%emt 0:01:17]} 11. Nxf6+ {[%emt 0:00:03]} Kh8 {[%emt 0:00:15]} 12. Nd5 {[%emt 0:00:24]} Bg4 {[%emt 0:01:41]} 13. h3 {[%emt 0:00:00]} Be6 {[%emt 0:00:25]} 14. Be7 {[%emt 0:00:00]} Qc6 {[%emt 0:00:47]} 15. Bxf8 {[%emt 0:00:00]} Rxf8 {[%emt 0:00:13]} 16. Nxe5 {[%emt 0:00:32]} Qd6 {[%emt 0:00:27]} 17. Nf3 {[%emt 0:01:09]} Re8 {[%emt 0:02:17]} 18. O-O {[%emt 0:00:00]} c6 {[%emt 0:00:37]} 19. Ne3 {[%emt 0:00:00]} Qf4 {[%emt 0:01:14]} 20. Qd2 {[%emt 0:00:30]} Bxh3 {[%emt 0:01:23]} 21. Nc4 {[%emt 0:00:00]} Bg4 {[%emt 0:00:42]} 22. Qxf4 {[%emt 0:00:00]} h5 {[%emt 0:01:17]} 23. Qxf7 {[%emt 0:00:37]} Re7 {[%emt 0:00:39]} 24. Qf8+ {[%emt 0:00:37]} Kh7 {[%emt 0:00:20]} 25. b4 {[%emt 0:00:26]} Re6 {[%emt 0:03:12]} 26. Qxc5 {[%emt 0:00:00]} Rg6 {[%emt 0:00:24]} 27. Nce5 {[%emt 0:00:23]} Rh6 {[%emt 0:00:23]} 28. Nxg4 {[%emt 0:00:12]} hxg4 {[%emt 0:00:24]} 29. Ng5+ {[%emt 0:00:34]} Kg8 {[%emt 0:01:56]} 30. Qc4+ {[%emt 0:00:00]} Kh8 {[%emt 0:00:23]} 31. Nf7+ {[%emt 0:00:00]} Kh7 {[%emt 0:00:17]} 32. Nxh6 {[%emt 0:00:12]} Kxh6 {[%emt 0:00:20]} 33. Qe6+ {[%emt 0:00:11]} Kg5 {[%emt 0:00:09]} 34. f4+ {[%emt 0:00:11]} Kh4 {[%emt 0:01:09]} 35. Qg8 {[%emt 0:00:00]} Kg3 {[%emt 0:00:13]} 36. Qh8 {[%emt 0:00:15]} g5 {[%emt 0:00:51]} 37. Qh2# 1-0

[Event "DVM U10 2024"]
[Site "Duesseldorf"]
[Date "2024.12.28"]
[Round "4"]
[White "Widlitzek, Philipp"]
[Black "Müller, Charlie Erik"]
[Result "0-1"]
[ECO "C45"]
[WhiteElo "860"]
[BlackElo "1043"]
[Annotator "NA"]
[PlyCount "116"]
[EventDate "2024.12.23"]
[EventType "team-tourn"]
[EventRounds "7"]
[EventCountry "GER"]
[SourceTitle "playchess.com"]
[Source "ChessBase"]
[SourceQuality "1"]
[TimeControl "3300+5"]

1. e4 {[%emt 0:00:01]} e5 {[%emt 0:00:05]} 2. Nf3 {[%emt 0:00:05]} Nc6 {[%emt 0:00:07]} 3. d4 {[%emt 0:00:06]} exd4 {[%emt 0:00:08]} 4. Nxd4 {[%emt 0:00:04]} Nxd4 {[%emt 0:00:09]} 5. Qxd4 {[%emt 0:00:05]} c5 {[%emt 0:01:30]} 6. Qd1 {[%emt 0:00:43]} d6 {[%emt 0:00:37]} 7. Nc3 {[%emt 0:00:12]} Nf6 {[%emt 0:00:21]} 8. Bf4 {[%emt 0:01:18]} Qe7 {[%emt 0:02:23]} 9. Nd5 {[%emt 0:00:47]} Qxe4+ {[%emt 0:00:54]} 10. Be3 {[%emt 0:00:18]} Qxd5 {[%emt 0:00:10]} 11. Qxd5 {[%emt 0:00:12]} Nxd5 {[%emt 0:00:06]} 12. O-O-O {[%emt 0:00:13]} Nxe3 {[%emt 0:00:18]} 13. fxe3 {[%emt 0:00:08]} Be6 {[%emt 0:00:22]} 14. Kb1 {[%emt 0:00:11]} O-O-O {[%emt 0:00:13]} 15. b3 {[%emt 0:01:25]} d5 {[%emt 0:01:33]} 16. Kb2 {[%emt 0:00:16]} Be7 {[%emt 0:02:31]} 17. Be2 {[%emt 0:00:50]} Bf6+ {[%emt 0:00:50]} 18. c3 {[%emt 0:00:08]} d4 {[%emt 0:00:19]} 19. exd4 {[%emt 0:02:21]} cxd4 {[%emt 0:00:13]} 20. cxd4 {[%emt 0:00:05]} Bxd4+ {[%emt 0:00:37]} 21. Ka3 {[%emt 0:00:14]} Bc5+ {[%emt 0:00:43]} 22. b4 {[%emt 0:00:14]} Rxd1 {[%emt 0:00:07]} 23. Rxd1 {[%emt 0:00:10]} Be7 {[%emt 0:00:41]} 24. Re1 {[%emt 0:00:38]} Re8 {[%emt 0:01:32]} 25. Rd1 {[%emt 0:00:19]} Rd8 {[%emt 0:01:53]} 26. Rxd8+ {[%emt 0:00:30]} Bxd8 {[%emt 0:00:09]} 27. Ka4 {[%emt 0:00:27]} Bxa2 {[%emt 0:00:23]} 28. b5 {[%emt 0:00:19]} Bd5 {[%emt 0:01:16]} 29. g4 {[%emt 0:00:39]} g5 {[%emt 0:00:25]} 30. Kb4 {[%emt 0:00:12]} Be7+ {[%emt 0:00:25]} 31. Ka4 {[%emt 0:00:18]} Bd8 {[%emt 0:01:17]} 32. Bd3 {[%emt 0:00:08]} h6 {[%emt 0:00:10]} 33. Bf5+ {[%emt 0:00:36]} Be6 {[%emt 0:00:15]} 34. Kb4 {[%emt 0:00:17]} Bxf5 {[%emt 0:00:15]} 35. gxf5 {[%emt 0:00:08]} a6 {[%emt 0:00:13]} 36. bxa6 {[%emt 0:00:18]} bxa6 {[%emt 0:00:04]} 37. h3 {[%emt 0:00:13]} f6 {[%emt 0:00:14]} 38. Ka4 {[%emt 0:00:11]} Kd7 {[%emt 0:00:09]} 39. Kb4 {[%emt 0:00:20]} Kd6 {[%emt 0:00:16]} 40. Kc4 {[%emt 0:00:29]} Ke5 {[%emt 0:00:11]} 41. Kd3 {[%emt 0:00:19]} Kxf5 {[%emt 0:00:33]} 42. Ke3 {[%emt 0:00:12]} Be7 {[%emt 0:00:19]} 43. Kf3 {[%emt 0:00:55]} a5 {[%emt 0:00:14]} 44. Ke3 {[%emt 0:00:30]} a4 {[%emt 0:00:09]} 45. Kd3 {[%emt 0:00:06]} a3 {[%emt 0:00:10]} 46. Kc3 {[%emt 0:00:08]} Kf4 {[%emt 0:00:08]} 47. Kc2 {[%emt 0:00:10]} Kg3 {[%emt 0:00:14]} 48. h4 {[%emt 0:00:27]} gxh4 {[%emt 0:00:07]} 49. Kb3 {[%emt 0:00:10]} h3 {[%emt 0:00:06]} 50. Kc3 {[%emt 0:00:07]} h2 {[%emt 0:00:05]} 51. Kb3 {[%emt 0:00:06]} h1=Q {[%emt 0:00:10]} 52. Kc3 {[%emt 0:00:07]} Qb1 {[%emt 0:00:13]} 53. Kd4 {[%emt 0:00:15]} a2 {[%emt 0:00:07]} 54. Kd5 {[%emt 0:00:07]} a1=Q {[%emt 0:00:09]} 55. Ke6 {[%emt 0:00:10]} Qe5+ {[%emt 0:00:11]} 56. Kf7 {[%emt 0:00:26]} Qb3+ {[%emt 0:00:11]} 57. Kg7 {[%emt 0:00:47]} Qg5+ {[%emt 0:00:13]} 58. Kh7 {[%emt 0:00:11]} Qbg8# {[%emt 0:00:08]} 0-1